Cogmind - Beta 13 @@@ ROGUE MODE // 2024.04.09 @ 19:25:59 Player: meetlok Result: Destroyed by JG-4LC(R) with Subdweller Laser Performance ------------- Evolutions (0) 0 Regions Visited (2) 400 Robots Destroyed (12) 60 Value Destroyed (349) 349 Prototype IDs (5) 100 Alien Tech Used (0) 0 Bonus (0) 0 TOTAL SCORE: 909 Bonus ------- None Cogmind --------- Core Integrity 0/250 Matter 219/300 Energy 100/100 System Corruption 0% Temperature Cool (6) Movement Walking (190) Ox1 Location -10/Subcaves Parts ------- > --- POWER (1) -------- (None) > --- PROPULSION (2) --- Aluminum Leg Aluminum Leg > --- UTILITY (2) ------ Large Storage Unit Makeshift Light Armor Plating > --- WEAPON (2) ------- Battle Cannon Grenade Launcher > --- INVENTORY (15) --- Aluminum Leg Disposable Heat Sink Medium Matter Pod (53) Subdweller Optics High-powered Tractor Beam Medium Laser Shotgun Shotgun Battle Cannon EMP Blaster Mining Laser Peak State ------------ > --- POWER ------------ (None) > --- PROPULSION ------- Aluminum Leg Aluminum Leg > --- UTILITY ---------- Large Storage Unit Makeshift Light Armor Plating > --- WEAPON ----------- Battle Cannon Grenade Launcher > --- INVENTORY -------- Aluminum Leg Disposable Heat Sink Medium Matter Pod Subdweller Optics High-powered Tractor Beam Medium Laser Shotgun Shotgun Battle Cannon EMP Blaster Mining Laser [Rating: 11] Favorites ----------- Power Ion Engine Engine Ion Engine Propulsion Aluminum Leg Leg Aluminum Leg Utility Large Storage Unit Device Disposable Heat Sink Storage Large Storage Unit Protection Light Armor Plating Weapon Grenade Launcher Energy Gun Medium Laser Ballistic Gun Shotgun Ballistic Cannon Battle Cannon Launcher Grenade Launcher Special Weapon Mining Laser Build | -11 -10 -10 ------- Run | Yrd Mat Sub Slots Evolved . | . . . Power . | . . . Propulsion . | . . . Utility . | . . . Weapon . | . . . Parts Attached 23 | 6 11 6 Power 1 | 1 . . Engine 1 | 1 . . Core . | . . . Reactor . | . . . Propulsion 4 | 2 1 1 Treads . | . . . Leg 4 | 2 1 1 Wheel . | . . . Hover . | . . . Flight . | . . . Utility 7 | 1 4 2 Device 1 | . . 1 Storage 4 | 1 3 . Processor . | . . . Hackware . | . . . Protection 2 | . 1 1 Artifact . | . . . Weapon 11 | 2 6 3 Energy Gun 2 | 1 . 1 Energy Cannon . | . . . Ballistic Gun 3 | 1 2 . Ballistic Cannon 1 | . . 1 Launcher 4 | . 3 1 Special Weapon 1 | . 1 . Impact Weapon . | . . . Slashing Weapon . | . . . Piercing Weapon . | . . . Special Melee Weapon . | . . . Unidentified Prototypes . | . . . Parts Lost 2 | . 2 . Power 1 | . 1 . Propulsion . | . . . Utility 1 | . 1 . Weapon . | . . . Highest Loss Streak 2 | . 2 . To Critical Strikes . | . . . Average Slot Usage (%) 91 | . 97 85 Engine 7 | . 13 . Leg 28 | . 28 28 Device 2 | . . 5 Storage 14 | . 14 14 Protection 9 | . 11 7 Energy Gun 5 | . 10 . Ballistic Gun 6 | . 10 3 Ballistic Cannon 5 | . . 10 Launcher 8 | . 4 13 Special Weapon 1 | . 2 . Naked Turns . | . . . Heaviest Build 33 | 14 33 30 Greatest Support 20 | 20 20 20 Greatest Overweight (x) 3 | 3 1 1 Average Overweight (x) . | . . 1 Largest Inventory Capacity 15 | 8 15 15 Average Capacity 12 | 7 10 15 Most Carried 11 | 2 9 11 Average Carried 8 | 1 7 9 Final Capacity 15 | 8 15 15 Final Carried 11 | 2 7 11 Class Distribution -------------------- 100% | Mutant Dominant Class ---------------- Mutant | -10/Materials Mutant | -10/Subcaves Resources | -11 -10 -10 ----------- Run | Yrd Mat Sub Matter Collected 632 | 231 352 49 Remotely . | . . . Salvage Created 414 | . 398 16 Parts 28 | . 27 1 Haulers Intercepted 1 | . 1 . Recyclers Shooed . | . . . Parts Field Recycled . | . . . Retrieved Matter . | . . . Parts Self-Destructed . | . . . Prevented . | . . . Kills | -11 -10 -10 ------- Run | Yrd Mat Sub Combat Hostiles Destroyed 9 | . 9 . Guns 7 | . 7 . AOE 2 | . 2 . Classes Destroyed 5 | . 4 1 Builder 2 | . 2 . Hauler 1 | . 1 . Grunt 6 | . 6 . Artisan 1 | . . 1 Subdweller 3 | . 3 . Best Kill Streak 3 | . 3 . Combat Bots Only 3 | . 3 . Max Kills in Single Turn 2 | . 2 1 Gunslinging . | . . . Exploded 2 | . 2 . Melee . | . . . Uniques/NPCs Destroyed . | . . . Combat | -11 -10 -10 -------- Run | Yrd Mat Sub Hostile Shots Fired 33 | . 32 1 Missed 7 | . 7 . Damage Taken 746 | . 698 48 Core 264 | . 234 30 Absorbed by Shields . | . . . Core Remaining (%) 100 | 100 . . Volleys Fired 51 | . 45 6 Largest 2 | . 2 2 Hottest 100 | . 100 69 Shots Fired 82 | . 70 12 Gun 45 | . 45 . Cannon 6 | . . 6 Launcher 11 | . 5 6 Special 20 | . 20 . Kinetic 34 | . 28 6 Thermal 37 | . 37 . Explosive 9 | . 3 6 Electromagnetic 2 | . 2 . Robot Hit Streak 11 | . 11 . Robot Miss Streak 3 | . 3 . Penetration Max . | . . . Secondary Targets 2 | . 2 . Max Gunslinging Chain 1 | . 1 . Shots Hit Robots 35 | . 35 . Core Hits 23 | . 22 1 Critical Kills 1 | . 1 . Critical Parts Destroyed . | . . . Critical Strikes 2 | . 2 . Burn 1 | . 1 . Destroy 1 | . 1 . Melee Attacks . | . . . Impact . | . . . Slashing . | . . . Piercing . | . . . Sneak Attacks . | . . . Combat Hostiles . | . . . Follow-up Attacks . | . . . Damage Inflicted 761 | . 714 47 Guns 545 | . 545 . Cannons . | . . . Explosions 216 | . 169 47 Melee . | . . . Ramming . | . . . Kinetic 419 | . 419 . Thermal 126 | . 126 . Explosive 205 | . 158 47 Electromagnetic 11 | . 11 . Impact . | . . . Slashing . | . . . Piercing . | . . . Highest Corruption . | . . . Average Corruption . | . . . Corruption Purged . | . . . Corruption Blocked . | . . . Overload Shots . | . . . Overflow Damage . | . . . Projectiles . | . . . Explosions . | . . . Melee . | . . . Knockbacks . | . . . Impact . | . . . Kinetic . | . . . Secondary . | . . . Self-Inflicted Damage 41 | . 12 29 Shots 2 | . 1 1 Rammed . | . . . Targets Rammed . | . . . Kicked . | . . . Crushed . | . . . Highest Temperature 250 | . 250 . Average Temperature 90 | . 90 . Received Heat Transfer 159 | . 153 6 Siege Activations . | . . . Robots Corrupted . | . . . Combat Hostiles . | . . . Parts Fried . | . . . Impact Corruptions . | . . . Robots Melted . | . . . Combat Hostiles . | . . . Parts Melted 3 | . 3 . Heat Transferred 444 | . 444 . Parts Sabotaged . | . . . Parts Stolen . | . . . Parts Stripped . | . . . Power Chain Reactions . | . . . Alert | -11 -10 -10 ------- Run | Yrd Mat Sub Peak Influence 251 | . 251 . Initial . | . . . Average 69 | . 75 . Maximum Alert Level 1 | . 1 . Low Security (%) 92 | 100 91 . Level 1 7 | . 8 . Level 2 . | . . . Level 3 . | . . . Level 4 . | . . . Level 5 . | . . . High Security . | . . . Max Security . | . . . Squads Dispatched 1 | . 1 . Investigation . | . . . Extermination . | . . . Reinforcement 1 | . 1 . Assault . | . . . Garrison . | . . . Intercept . | . . . Searches Triggered . | . . . Construction Impeded . | . . . Haulers Reinforced . | . . . Active Scanning Responses . | . . . Cargo Convoy Interrupts . | . . . Stealth | -11 -10 -10 --------- Run | Yrd Mat Sub Distress Signals 1 | . 1 . Communications Jammed . | . . . Distress Signals . | . . . Times Spotted 19 | . 17 2 Peak Tracking Total 3 | . 3 2 Tactical Retreats 1 | . 1 . Traps | -11 -10 -10 ------- Run | Yrd Mat Sub Traps Triggered . | . . . Indirectly . | . . . Trap Hack Attempts . | . . . Triggered . | . . . Disarmed . | . . . Reprogrammed . | . . . Reused . | . . . Traps Extracted . | . . . Installed . | . . . Triggered . | . . . Machines | -11 -10 -10 ---------- Run | Yrd Mat Sub Machines Disabled . | . . . Max in Single Turn . | . . . Machines Repaired . | . . . Machines Dismantled . | . . . Machines Sabotaged . | . . . Overloaded Fab Kills . | . . . Hacking | -11 -10 -10 --------- Run | Yrd Mat Sub Machines Accessed 4 | . 3 1 Terminals 2 | . 2 . Fabricators . | . . . Repair Stations . | . . . Recycling Units 1 | . 1 . Scanalyzers . | . . . Garrison Access . | . . . Total Hacks 10 | . 6 4 Successful 9 | . 5 4 Failed 1 | . 1 . Catastrophic . | . . . Database Lockouts . | . . . Manual 1 | . . 1 Terminals 5 | . 5 . Fabricators . | . . . Repair Stations . | . . . Recycling Units 1 | . 1 . Scanalyzers . | . . . Garrison Access . | . . . Terminal Hacks 8 | . 4 4 Record 4 | . . 4 Prototype ID Bank 2 | . 2 . Hauler Manifests 1 | . 1 . Zone Layout 1 | . 1 . Fabricator Hacks . | . . . Repair Station Hacks . | . . . Recycling Unit Hacks 1 | . 1 . Report Inventory 1 | . 1 . Scanalyzer . | . . . Garrison Access Hacks . | . . . Unauthorized Hacks . | . . . Terminals . | . . . Fabricators . | . . . Repair Stations . | . . . Recycling Units . | . . . Scanalyzers . | . . . Garrison Access . | . . . Data Cores Recovered . | . . . Used . | . . . Hacking Detections 2 | . 2 . Full Trace Events . | . . . Feedback Events . | . . . Feedback Blocked . | . . . Robot Schematics Acquired . | . . . Robots Built . | . . . Authchips . | . . . Time . | . . . Total Robot Build Rating . | . . . Part Schematics Acquired . | . . . Parts Built . | . . . Authchips . | . . . Time . | . . . Total Part Build Rating . | . . . Parts Repaired . | . . . Time . | . . . Parts Recycled . | . . . Recycled Matter . | . . . Retrieved Matter . | . . . Retrieved Components . | . . . Parts Scanalyzed . | . . . Part Schematics Acquired . | . . . Parts Damaged . | . . . Bothacking | -11 -10 -10 ------------ Run | Yrd Mat Sub Used RIF Installer . | . . . Robots Hacked . | . . . Non-combat . | . . . Combat . | . . . Robot Hacks Applied . | . . . Relay Couplers Released . | . . . Fabnet Peak Effective % . | . . . Robots Rewired . | . . . Allies Hacked . | . . . Hacks Repelled . | . . . Allies | -11 -10 -10 -------- Run | Yrd Mat Sub Total Allies . | . . . Largest Group . | . . . Highest-Rated Group . | . . . Highest-Rated Ally . | . . . Total Orders . | . . . Ally Attacks . | . . . Total Damage . | . . . Kills . | . . . Allies Corrupted . | . . . Allies Melted . | . . . Intel | -11 -10 -10 ------- Run | Yrd Mat Sub Robot Analysis Total . | . . . Derelict Logs Recovered 2 | . . 2 Drone Launches . | . . . Drone Recoveries . | . . . Exploration | -11 -10 -10 ------------- Run | Yrd Mat Sub Turns Passed 1378 | 56 680 642 Spaces Moved 680 | 36 343 301 Core 6 | 6 . . Treads . | . . . Legs 674 | 30 343 301 Wheels . | . . . Hover . | . . . Flight . | . . . Fastest Speed 50 | 50 120 190 Average Speed 157 | 128 131 190 Slowest Speed 200 | 200 190 190 Overloaded Moves . | . . . Propulsion Burnouts . | . . . Robots Hopped . | . . . Cave-ins Triggered 1 | . 1 . Exploration Rate (%) 26 | 4 56 20 Regions Visited 2 Branch Regions 1 Pre-discovered Areas . | . . . Known Exits Taken . | . . . Unknown Exits Taken 2 | 1 1 . Scrap Searched 1 | . . 1 Spaces Dug 3 | . 3 . Terrain Destroyed 63 | . 27 36 Melee . | . . . Projectile 4 | . 4 . AOE 59 | . 23 36 Terrain Rammed . | . . . Walls Destroyed . | . . . Machines Disabled . | . . . Actions | -11 -10 -10 --------- Run | Yrd Mat Sub Total 861 | 43 462 356 Wait 79 | . 40 39 Move 678 | 35 342 301 Hop . | . . . Pick Up 19 | 2 13 4 Fast Attach 8 | 6 2 . Attach 1 | . 1 . Detach . | . . . Swap 14 | . 8 6 Drop 10 | . 10 . Fire 51 | . 45 6 Melee . | . . . Ram . | . . . Kick . | . . . Crush . | . . . Escape Stasis 1 | . 1 . Rewire . | . . . Trap . | . . . Miscellaneous . | . . . Route ------- -11/Scrapyard -10/Materials (discovered 2 exits: [*Min] / *Sub) -10/Subcaves (discovered 1 exit: [*Mat]) History --------- Turn | Location | Event 14 | -11/Scrapyard | Discovered new exit (range 14) 57 | -11/Scrapyard | Entered Materials 332 | -10/Materials | Build established: Mutant 352 | -10/Materials | Discovered new exit (range 16) 664 | -10/Materials | Discovered new exit (range 3) 700 | -10/Materials | Derelicts attacked the area 733 | -10/Materials | Crushed by falling debris 734 | -10/Materials | Core integrity fell below 50% 734 | -10/Materials | Core integrity fell below 20% 737 | -10/Materials | Entered Subcaves 866 | -10/Subcaves | Shifting Twisted Machinery released Battle Cannon 896 | -10/Subcaves | Shifting Twisted Machinery released Battle Cannon 970 | -10/Subcaves | Learned 2 Materials zone layouts 1078 | -10/Subcaves | Learned Materials terminal intel 1125 | -10/Subcaves | Visited Clippyterm 1347 | -10/Subcaves | Discovered new exit (range 7) 1379 | -10/Subcaves | Destroyed by JG-4LC(R) with Subdweller Laser Last Messages --------------- >>Record! "Early Bird" It looks like you're searching for a worm, right? Don't bother with early when it comes to the Lifeworm, it's never early, but by some measures it might be just in time... >>Record! "LU-1G1" It looks like you're researching the legendary digger of dangerously deep tunnels, unfortunately it seems not even members of the Boring Crew know what became of that one. NX-GGE(u) tweaks Twisted Machinery. NX-GGE(u) builds Twisted Machinery. The unstable cave ceiling collapses. NX-GGE(u) cries out in pain. NX-GGE(u) destroyed. Subatomizers dissect the Wheel. Acquired 16 matter. The unstable cave ceiling collapses. EXIT=FOUND JG-4LC(R) emerges from the Twisted Machinery. Map ----- +----------------------------------------------------+ | ?????????#####???????????????????????????????????? | | ?????????# ##??????????????????????????????????? | | ?????????## #??#####???????????????????????????? | | ??????????# #### ###??????? #????????????????? | | ########### ## #?????? ???????????????? | | ## # # #????? ???????????????? | | # ######???? ???????????????? | | # ##??????? ????????????????? | | # # # # ###???? ??????????????????? | | ######## #??? < #???????????????????? | | " #????# ## ##?# #???????????????????? | | =##???# ### ## #????????????????????? | | #???## #?## #??????????????????????? | | ##????## ##??## ####??????????????????????? | | ##?????#####???## ##?????????????????????????? | | #?????????????# ####???????????????????????? | | #?????????????## ##??????????????????????? | | #??????????????# #??????????????????????? | | ##??????????????### ##??????????????????????? | | ###????????????????## #??????????????????????? | | #?????????????????# ##??????????????????????? | | #?????????????????# #???????????????????????? | | #?????????????????## ##??????????????????????? | | # ##??????????????????# ##?????????????????????? | | # ##???????????????????# ##????????????????????? | | # ##???????????????????##@ ##???????????????????? | | " #?????????????????#### ##??????????????????? | | #?????????????????# #??????????????????? | | ##?????????????????# #??????????????????? | | #????????????????# #??????????????????? | | # ##???????????????# ?????????????????? | | # #??????????????# ## ## ???????????????? | | #??????????????# ??###? ?????????????? | | # ##??????????????# ??????? ???????????? | | #??????????????# #??????? R ??????????? | | # ##??????????????## #????????? R ???????????? | | #???????????????###??????????? ???????????? | | # ###????????????????????????????? "????????????? | | # #????????????????????????????????????????????? | | # #????????????????????????????????????????????? | | # #????????????????????????????????????????????? | | ##????????????????????????????????????????????? | | ##?????????????????????????????????????????????? | | #??????????????????????????????????????????????? | | #####??????????????????????????????????????????? | | # ## ####???????????????????????????????????????? | | #???????????????????????????????????????? | | ##???????????????????????????????????????? | | # ## #???????????????????????????????????????? | | ###### ##???????????????????????????????????????? | +----------------------------------------------------+ Best States ------------- Heat Dissipation 25 Coolant Potential 50 Energy Generation 10 Energy Capacity 250 Matter Stores 353 Matter Capacity 400 Sight Range 16 Terrain Scan Density 10 Armor Coverage 150 Evasion (%) 55 Item Schematics ----------------- None Robot Schematics ------------------ None Fabricated ------------ Nothing Alien Tech Used ----------------- None Achievements -------------- None Challenges ------------ None Game ------ Seed EnergyMultinovaMultitool Manual? 0 Play Time 00:24:45 Cumulative 24.1 hours Start 2024.04.09 @ 18:57:34 End 2024.04.09 @ 19:25:59 Sessions 1 Manual Loads 0 Difficulty Rogue Special Mode None Game No. 14 Rogue 14 Adventurer 0 Explorer 0 Win Type - Total 0 Types 0/0/0/0/0/0/0/0/0 Lore% 8 Gallery% 22 Achievement% 15 Wizard Run 0 Options --------- Layout 1 ASCII 0 Keyboard 1 Movement Numpad Keybinds 0 Fullscreen 1 Font 24/Smallcaps Map View 50x35 Zoom Use 0% Tactical HUD 0 Map Filters NONE Filters NONE Steam 1 RUN: d0cb1603-715b-493a-b898-4fe820425d0c